Cogmind - Beta 13 @@@ ROGUE MODE // 2024.04.17 @ 20:13:18 Player: AntinDisguise Result: Destroyed by EMP Trap Performance ------------- Evolutions (1) 500 Regions Visited (2) 400 Robots Destroyed (46) 230 Value Destroyed (808) 808 Prototype IDs (0) 0 Alien Tech Used (0) 0 Bonus (36) 36 TOTAL SCORE: 1974 Bonus ------- High Alert Combat Kills 36 Cogmind --------- Core Integrity 0/400 Matter 300/300 Energy 286/290 System Corruption 3% Temperature Cool (2) Movement Treading (240) Ox1 Location -9/Materials Parts ------- > --- POWER (2) -------- Light Ion Engine Improved Ion Engine > --- PROPULSION (2) --- Light Treads Light Treads > --- UTILITY (3) ------ Large Storage Unit Structural Scanner Terrain Scanner > --- WEAPON (2) ------- Ion Cannon Ion Cannon > --- INVENTORY (15) --- Light Treads Light Treads Light Treads Light Treads Ion Cannon Ion Cannon Improved Grenade Launcher Peak State ------------ > --- POWER ------------ Ion Engine Improved Ion Engine > --- PROPULSION ------- Wheel Compact Wheel > --- UTILITY ---------- Small Storage Unit Structural Scanner Improved Terrain Scanner > --- WEAPON ----------- Ion Cannon Ion Cannon > --- INVENTORY -------- Light Treads Light Treads Light Treads Improved Grenade Launcher Improved Grenade Launcher Improved Grenade Launcher Improved Grenade Launcher [Rating: 17] Favorites ----------- Power Improved Ion Engine Engine Improved Ion Engine Propulsion Light Treads Treads Light Treads Wheel Compact Wheel Utility Large Storage Unit Device Structural Scanner Storage Large Storage Unit Protection Core Shielding Weapon Ion Cannon Energy Cannon Ion Cannon Ballistic Gun Assault Rifle Launcher Improved Grenade Launcher Build | -11 -10 -9 ------- Run | Yrd Mat Mat Slots Evolved 2 | . . 2 Power 1 | . . 1 Propulsion . | . . . Utility 1 | . . 1 Weapon . | . . . Parts Attached 33 | 7 1 25 Power 6 | 1 . 5 Engine 6 | 1 . 5 Core . | . . . Reactor . | . . . Propulsion 7 | 2 . 5 Treads 3 | . . 3 Leg . | . . . Wheel 4 | 2 . 2 Hover . | . . . Flight . | . . . Utility 11 | 2 1 8 Device 6 | 1 1 4 Storage 2 | 1 . 1 Processor . | . . . Hackware . | . . . Protection 3 | . . 3 Artifact . | . . . Weapon 9 | 2 . 7 Energy Gun . | . . . Energy Cannon 4 | . . 4 Ballistic Gun 2 | 2 . . Ballistic Cannon . | . . . Launcher 3 | . . 3 Special Weapon . | . . . Impact Weapon . | . . . Slashing Weapon . | . . . Piercing Weapon . | . . . Special Melee Weapon . | . . . Unidentified Prototypes . | . . . Parts Lost 15 | . . 15 Power 3 | . . 3 Propulsion 3 | . . 3 Utility 5 | . . 5 Weapon 4 | . . 4 Highest Loss Streak 8 | . . 8 To Critical Strikes . | . . . Average Slot Usage (%) 83 | . 100 81 Engine 14 | . 14 14 Treads 16 | . . 18 Wheel 5 | . 28 2 Device 7 | . 14 6 Storage 11 | . 14 11 Protection 6 | . . 7 Energy Cannon 9 | . . 10 Ballistic Gun 3 | . 28 . Launcher 8 | . . 9 Naked Turns . | . . . Heaviest Build 47 | 15 15 47 Greatest Support 40 | 26 26 40 Greatest Overweight (x) 3 | . . 3 Average Overweight (x) . | . . . Largest Inventory Capacity 15 | 8 8 15 Average Capacity 12 | 7 8 12 Most Carried 9 | 5 5 9 Average Carried 5 | 2 3 6 Final Capacity 15 | 8 8 15 Final Carried 7 | 3 5 7 Class Distribution -------------------- 86% | Mutant 13% | Scavenger-Mutant Dominant Class ---------------- Mutant | -10/Materials Mutant | -9/Materials Resources | -11 -10 -9 ----------- Run | Yrd Mat Mat Matter Collected 890 | 315 29 546 Remotely . | . . . Salvage Created 1112 | 170 29 913 Parts 95 | 10 5 80 Haulers Intercepted 2 | . . 2 Recyclers Shooed 1 | . . 1 Parts Field Recycled . | . . . Retrieved Matter . | . . . Parts Self-Destructed . | . . . Prevented . | . . . Kills | -11 -10 -9 ------- Run | Yrd Mat Mat Combat Hostiles Destroyed 24 | . 2 22 Guns 2 | . 2 . Cannons 8 | . . 8 AOE 14 | . . 14 Classes Destroyed 10 | 2 1 7 Worker 4 | . . 4 Builder 6 | . . 6 Tunneler 4 | 3 . 1 Hauler 2 | . . 2 Recycler 3 | 1 . 2 Watcher 3 | . . 3 Swarmer 10 | . 2 8 Grunt 8 | . . 8 Brawler 1 | . . 1 Sentry 5 | . . 5 Best Kill Streak 10 | 3 2 10 Combat Bots Only 7 | . 2 7 Max Kills in Single Turn 5 | 1 2 5 Gunslinging . | . . . Exploded 5 | . . 5 Melee . | . . . Uniques/NPCs Destroyed . | . . . Combat | -11 -10 -9 -------- Run | Yrd Mat Mat Hostile Shots Fired 200 | . 9 191 Missed 51 | . 4 47 Damage Taken 1740 | . 40 1700 Core 417 | . 7 410 Absorbed by Shields . | . . . Redirected to Shielding 12 | . . 12 Core Remaining (%) 98 | 100 97 . Volleys Fired 72 | 8 3 61 Largest 2 | 2 2 2 Hottest 120 | 40 40 120 Shots Fired 131 | 16 6 109 Gun 22 | 16 6 . Cannon 85 | . . 85 Launcher 24 | . . 24 Special . | . . . Kinetic 22 | 16 6 . Thermal 85 | . . 85 Explosive 24 | . . 24 Electromagnetic . | . . . Robot Hit Streak 7 | 4 3 7 Robot Miss Streak 5 | 2 3 5 Penetration Max . | . . . Secondary Targets . | . . . Shots Hit Robots 62 | 8 3 51 Core Hits 56 | 5 2 49 Critical Kills . | . . . Critical Parts Destroyed . | . . . Critical Strikes . | . . . Melee Attacks . | . . . Impact . | . . . Slashing . | . . . Piercing . | . . . Sneak Attacks . | . . . Combat Hostiles . | . . . Follow-up Attacks . | . . . Damage Inflicted 2559 | 103 50 2406 Guns 153 | 103 50 . Cannons 967 | . . 967 Explosions 1439 | . . 1439 Melee . | . . . Ramming . | . . . Kinetic 153 | 103 50 . Thermal 967 | . . 967 Explosive 1439 | . . 1439 Electromagnetic . | . . . Impact . | . . . Slashing . | . . . Piercing . | . . . Highest Corruption 3 | . . 3 Average Corruption 3 | . . 3 Corruption Purged . | . . . Corruption Blocked . | . . . Effects 13 | . . 13 Message Errors 6 | . . 6 Matter Fused 2 | . . 2 Heat Flow Errors 2 | . . 2 Data Loss (major) 1 | . . 1 Weapon Failures 2 | . . 2 Overload Shots . | . . . Overflow Damage 93 | . . 93 Projectiles 61 | . . 61 Explosions 32 | . . 32 Melee . | . . . Knockbacks . | . . . Impact . | . . . Kinetic . | . . . Secondary . | . . . Self-Inflicted Damage 86 | . . 86 Shots 3 | . . 3 Rammed . | . . . Targets Rammed . | . . . Kicked . | . . . Crushed . | . . . Highest Temperature 451 | 6 . 451 Average Temperature 121 | 6 . 121 Received Heat Transfer 381 | . . 381 Effects 3 | . . 3 Interference 1 | . . 1 Matter Decay 1 | . . 1 Damage (minor) 1 | . . 1 Siege Activations . | . . . Robots Corrupted . | . . . Combat Hostiles . | . . . Parts Fried . | . . . Impact Corruptions . | . . . Robots Melted . | . . . Combat Hostiles . | . . . Parts Melted 1 | . . 1 Heat Transferred 1554 | . . 1554 Parts Sabotaged . | . . . Parts Stolen . | . . . Parts Stripped . | . . . Power Chain Reactions . | . . . Alert | -11 -10 -9 ------- Run | Yrd Mat Mat Peak Influence 579 | 20 83 579 Initial 34 | . 13 34 Average 265 | 8 34 310 Maximum Alert Level 2 | . . 2 Low Security (%) 35 | 100 100 24 Level 1 35 | . . 41 Level 2 28 | . . 34 Level 3 . | . . . Level 4 . | . . . Level 5 . | . . . High Security . | . . . Max Security . | . . . Squads Dispatched 3 | . . 3 Investigation . | . . . Extermination . | . . . Reinforcement 3 | . . 3 Assault . | . . . Garrison . | . . . Intercept . | . . . Searches Triggered . | . . . Construction Impeded . | . . . Haulers Reinforced . | . . . Active Scanning Responses . | . . . Cargo Convoy Interrupts . | . . . Stealth | -11 -10 -9 --------- Run | Yrd Mat Mat Distress Signals 5 | . . 5 Communications Jammed . | . . . Distress Signals . | . . . Times Spotted 42 | . 4 38 Peak Tracking Total 9 | . 3 9 Tactical Retreats 2 | . . 2 Traps | -11 -10 -9 ------- Run | Yrd Mat Mat Traps Triggered 1 | . . 1 Indirectly . | . . . Trap Hack Attempts . | . . . Triggered . | . . . Disarmed . | . . . Reprogrammed . | . . . Reused . | . . . Traps Extracted . | . . . Installed . | . . . Triggered . | . . . Machines | -11 -10 -9 ---------- Run | Yrd Mat Mat Machines Disabled 3 | . . 3 Max in Single Turn 1 | . . 1 Machines Repaired . | . . . Machines Dismantled . | . . . Machines Sabotaged . | . . . Overloaded Fab Kills . | . . . Hacking | -11 -10 -9 --------- Run | Yrd Mat Mat Machines Accessed 2 | . . 2 Terminals . | . . . Fabricators . | . . . Repair Stations . | . . . Recycling Units 1 | . . 1 Scanalyzers 1 | . . 1 Garrison Access . | . . . Total Hacks 3 | . . 3 Successful 2 | . . 2 Failed 1 | . . 1 Catastrophic 1 | . . 1 Database Lockouts . | . . . Manual . | . . . Terminals . | . . . Fabricators . | . . . Repair Stations . | . . . Recycling Units 1 | . . 1 Scanalyzers 2 | . . 2 Garrison Access . | . . . Terminal Hacks . | . . . Fabricator Hacks . | . . . Repair Station Hacks . | . . . Recycling Unit Hacks . | . . . Scanalyzer 2 | . . 2 Insert Component 1 | . . 1 Analyze 1 | . . 1 Garrison Access Hacks . | . . . Unauthorized Hacks . | . . . Terminals . | . . . Fabricators . | . . . Repair Stations . | . . . Recycling Units . | . . . Scanalyzers . | . . . Garrison Access . | . . . Data Cores Recovered . | . . . Used . | . . . Hacking Detections 2 | . . 2 Full Trace Events . | . . . Feedback Events . | . . . Feedback Blocked . | . . . Robot Schematics Acquired . | . . . Robots Built . | . . . Authchips . | . . . Time . | . . . Total Robot Build Rating . | . . . Part Schematics Acquired 1 | . . 1 Parts Built . | . . . Authchips . | . . . Time . | . . . Total Part Build Rating . | . . . Parts Repaired . | . . . Time . | . . . Parts Recycled . | . . . Recycled Matter . | . . . Retrieved Matter . | . . . Retrieved Components . | . . . Parts Scanalyzed 1 | . . 1 Part Schematics Acquired 1 | . . 1 Parts Damaged . | . . . Bothacking | -11 -10 -9 ------------ Run | Yrd Mat Mat Used RIF Installer . | . . . Robots Hacked . | . . . Non-combat . | . . . Combat . | . . . Robot Hacks Applied . | . . . Relay Couplers Released . | . . . Fabnet Peak Effective % . | . . . Robots Rewired . | . . . Allies Hacked . | . . . Hacks Repelled . | . . . Allies | -11 -10 -9 -------- Run | Yrd Mat Mat Total Allies . | . . . Largest Group . | . . . Highest-Rated Group . | . . . Highest-Rated Ally . | . . . Total Orders . | . . . Ally Attacks . | . . . Total Damage . | . . . Kills . | . . . Allies Corrupted . | . . . Allies Melted . | . . . Intel | -11 -10 -9 ------- Run | Yrd Mat Mat Robot Analysis Total . | . . . Derelict Logs Recovered . | . . . Drone Launches . | . . . Drone Recoveries . | . . . Exploration | -11 -10 -9 ------------- Run | Yrd Mat Mat Turns Passed 1513 | 96 142 1275 Spaces Moved 777 | 68 144 565 Core 15 | 13 . 2 Treads 468 | . . 468 Legs . | . . . Wheels 294 | 55 144 95 Hover . | . . . Flight . | . . . Fastest Speed 50 | 50 90 90 Average Speed 153 | 82 90 178 Slowest Speed 320 | 90 90 320 Overloaded Moves . | . . . Propulsion Burnouts . | . . . Robots Hopped . | . . . Cave-ins Triggered . | . . . Exploration Rate (%) 25 | 5 25 46 Regions Visited 2 Branch Regions . Pre-discovered Areas . | . . . Known Exits Taken . | . . . Unknown Exits Taken 2 | 1 1 . Scrap Searched . | . . . Spaces Dug 2 | . . 2 Terrain Destroyed 185 | . . 185 Melee . | . . . Projectile 11 | . . 11 AOE 174 | . . 174 Terrain Rammed . | . . . Walls Destroyed . | . . . Machines Disabled . | . . . Actions | -11 -10 -9 --------- Run | Yrd Mat Mat Total 964 | 91 149 724 Wait 36 | . . 36 Move 775 | 67 143 565 Hop . | . . . Pick Up 38 | 9 2 27 Fast Attach 3 | 1 . 2 Attach 25 | 6 . 19 Detach . | . . . Swap 5 | . 1 4 Drop 10 | . . 10 Fire 72 | 8 3 61 Melee . | . . . Ram . | . . . Kick . | . . . Crush . | . . . Escape Stasis . | . . . Rewire . | . . . Trap . | . . . Miscellaneous . | . . . Route ------- -11/Scrapyard -10/Materials -9/Materials (discovered 1 exit: [*Mat]) History --------- Turn | Location | Event 6 | -11/Scrapyard | Discovered new exit (range 15) 97 | -11/Scrapyard | Entered Materials 229 | -10/Materials | Discovered new exit (range 5) 239 | -10/Materials | Entered another Materials area 239 | -9/Materials | Evolved 2 slots: Power x1, Utility x1 303 | -9/Materials | Build established: Mutant 383 | -9/Materials | Core integrity fell below 50% 412 | -9/Materials | Destroyed 7 combat bots 413 | -9/Materials | Lost 8 parts (2p2n2u2w) 978 | -9/Materials | Core integrity fell below 20% 1232 | -9/Materials | Discovered new exit (range 8) 1514 | -9/Materials | Destroyed by EMP Trap Last Messages --------------- Acquired Lgt. Treads. Acquired Structural Scanner. R-06 Scavenger collects Wheel. Acquired Terrain Scanner. Acquired Lgt. Ion Engine. Dropped Lgt. Ion Engine. Connecting with Scanalyzer... Acquired 5 matter. W-16 Scout destroyed. TDVY&HY73T#UZO K-01 Serf destroyed. K-01 Serf collects debris. Extracted 25 matter. K-01 Serf collects debris. U-05 Engineer builds a Door. System corrupted: Substantial component data lost. IATHK/%IDFYDGM#9FA#CBAF7RYADMAY=&% Triggered EMP Trap. A bubble of electromagnetic force engulfs the area. Map ----- +----------------------------------------------------+ | | | | | | | | | ?????????????????????????????????????????? | | ?????????????????????????????????????????? | | ?????????????????????????????????????????? | | ?????????????????????????????????????????? | | ?????????????????????????????????????????? | | ?????????????????????????????????????????? | | ?????????????????????????????????????????? | | ??????????????????????? ??????????????? | | ???????????????##??????##+#??????????????? | | ???????????????????????# ??????????????? | | ???????????????????????? ????????"##????? | | ######?????#????????#??# ??????? ##????? | | #??#????????#?????## ## ??? ##????? | | """ #??????????????##### ##???? ##????? | | """ #???#????########### ##??? ##????? | | """ #????????####### ### ##??? ###????? | | """ #????????## ### #### ###?????? | | """ #????????## "S ### #### # ??????? | | """ #????????## """ ### T + ??????? | | """ #????????## "" ### # ??????? | | ###########% /### ^ !# ??????? | | ################ ###@ """ # ??????? | | ##+####### """ # ??????? | | ! % """ ##??????? | | # ??????? | | ########## !%* % # ??????? | | ???####### ##### ####+###### ??????? | | ???????#####+####### # ## ??????? | | ???????## ## # ????????????????? | | ???????## ## # ??? ????????????? | | ???????## ## # ????????????????? | | ???????## """ ## # ????????????????? | | ???????## """"" ## # ????????????????? | | ???????## """"" ## # ???????????????? | | ???????## """"" ## # ????????????????? | | ??????### """ ## # ????????????????? | | ???????############# ##????????????????? | | ???????############# ##????????????????? | | ??????????????????## ##????????????????? | | ????????#?????????## ##????????????????? | | ??????????????????## ##????????????????? | | ?????????????????????????????????????????? | | ?????????????????????????????????????????? | | ?????????????????????????????????????????? | | ????????????????????? ???????????????????? | | ?????????????????????????????????????????? | +----------------------------------------------------+ Best States ------------- Heat Dissipation 38 Energy Generation 19 Energy Capacity 430 Matter Stores 300 Matter Capacity 300 Sight Range 16 Terrain Scan Range 16 Terrain Scan Density 10 Core Shielding 20 Evasion (%) 50 Recoil Reduction 2 Item Schematics ----------------- Imp. Grenade Launcher | -9/Materials | Scanalyzed Robot Schematics ------------------ None Fabricated ------------ Nothing Alien Tech Used ----------------- None Achievements -------------- None Challenges ------------ None Game ------ Seed ProjectionHeartSplitter Manual? 0 Play Time 00:13:48 Cumulative 21.3 hours Start 2024.04.17 @ 20:00:58 End 2024.04.17 @ 20:13:18 Sessions 1 Manual Loads 0 Difficulty Rogue Special Mode None Game No. 53 Rogue 51 Adventurer 2 Explorer 0 Win Type - Total 0 Types 0/0/0/0/0/0/0/0/0 Lore% 20 Gallery% 28 Achievement% 20 Wizard Run 0 Options --------- Layout 1 ASCII 0 Keyboard 0 Movement Mouse Keybinds 0 Fullscreen 1 Font 16/SmallcapsGlow Map View 27x19 Zoom Use 96% Tactical HUD 0 Map Filters NONE Filters NONE Steam 1 RUN: a4037136-f06e-4f56-a133-9a0a7dfdddce